bitfinex/quotes_SOLUSD_20230113
["timestamp","ask_amount","ask_price","bid_price","bid_amount"]
[1673622355932,361.4,16.756,16.741,20.0]
[1673622356115,361.4,16.754,16.741,20.0]
[1673622356975,44.78,16.753,16.742,29.8800799]
[1673622357175,406.18,16.753,16.74,24.52]
[1673622357599,421.53,16.752,16.737,116.5582]
[1673622357812,44.78,16.751,16.737,116.5582]
[1673622358228,44.78,16.751,16.74,24.25]
[1673622358643,44.78,16.751,16.74,54.1300799]
[1673622358868,44.77,16.754,16.74,54.1300799]
[1673622359692,406.17,16.754,16.74,54.1300799]
[1673622360117,20.0,16.753,16.74,24.25]
[1673622360328,361.4,16.751,16.737,116.5582]
[1673622360533,423.18,16.75,16.738,20.0]
[1673622360765,423.18,16.75,16.738,40.0]
[1673622361167,423.18,16.75,16.738,20.0]
[1673622362017,423.18,16.75,16.739,29.8800799]
[1673622362222,423.18,16.75,16.738,20.0]
[1673622363160,17.0,16.75,16.738,20.0]
[1673622363385,406.18,16.752,16.74,24.34]
[1673622363578,44.77,16.755,16.74,24.34]
[1673622363787,44.77,16.755,16.74,121.7]
[1673622363996,44.77,16.755,16.741,29.8800799]
[1673622364231,44.76,16.758,16.742,20.0]
[1673622364434,406.16,16.758,16.742,20.0]
[1673622364646,406.16,16.758,16.743,29.8800799]
[1673622364866,406.16,16.758,16.744,20.0]
[1673622365188,361.4,16.758,16.745,29.8800799]
[1673622365406,361.4,16.759,16.746,20.0]
[1673622365613,361.4,16.759,16.75,24.34]
[1673622365927,406.14,16.765,16.75,24.34]
[1673622366542,406.14,16.765,16.751,20.0]
[1673622366759,361.4,16.765,16.752,20.0]
[1673622367390,361.4,16.766,16.752,20.0]
[1673622367598,44.74,16.765,16.752,20.0]
[1673622367813,44.74,16.765,16.75,24.34]
[1673622368014,361.4,16.764,16.75,24.34]
[1673622368227,44.75,16.763,16.75,24.34]
[1673622368646,44.75,16.763,16.751,29.8800799]
[1673622369071,361.4,16.766,16.751,29.8800799]
[1673622369072,44.74,16.765,16.751,29.8800799]
[1673622369393,44.74,16.768,16.751,29.8800799]
[1673622369587,44.74,16.768,16.752,40.0]
[1673622369927,44.73,16.771,16.76,24.25]
[1673622370115,361.4,16.773,16.76,24.25]
[1673622370439,361.4,16.773,16.761,20.0]
[1673622370640,361.4,16.773,16.762,20.0]
[1673622370967,44.7,16.782,16.762,20.0]
[1673622371181,518.1952,16.784,16.762,49.8800799]
[1673622371385,542.1,16.782,16.762,20.0]
[1673622371595,44.7,16.781,16.763,29.8800799]
[1673622371802,44.7,16.783,16.764,20.0]
[1673622372023,44.7,16.783,16.764,136.7074]
[1673622372251,44.7,16.783,16.765,29.8800799]
[1673622372439,44.7,16.783,16.77,24.34]
[1673622372764,44.7,16.783,16.771,29.8800799]
[1673622373475,44.7,16.783,16.767,20.0]
[1673622373689,24.18,16.78,16.76,24.49]
[1673622373907,64.71,16.779,16.76,24.49]
[1673622374100,44.71,16.779,16.76,24.49]
[1673622374311,44.71,16.779,16.76,121.85]
[1673622374525,225.4,16.783,16.761,20.0]
[1673622375172,60.13,16.782,16.76,121.85]
[1673622375365,44.17,16.78,16.761,20.0]
[1673622375571,44.71,16.779,16.761,20.0]
[1673622375814,17.0,16.778,16.761,20.0]
[1673622376032,44.71,16.777,16.761,20.0]
[1673622376455,17.0,16.776,16.761,20.0]
[1673622376651,44.72,16.775,16.761,20.0]
[1673622376862,17.0,16.774,16.761,20.0]
[1673622377287,44.72,16.773,16.761,20.0]
[1673622377499,44.72,16.773,16.76,24.49]
[1673622377707,60.13,16.777,16.76,24.49]
[1673622378032,44.71,16.776,16.76,24.49]
[1673622378434,157.5945,16.776,16.76,24.49]
[1673622379406,20.0,16.775,16.76,24.49]
[1673622379619,44.72,16.774,16.76,24.49]
[1673622380146,44.72,16.775,16.76,24.49]
[1673622380463,44.72,16.775,16.761,20.0]
[1673622380675,44.72,16.775,16.76,24.49]
[1673622381190,44.72,16.775,16.759,396.6]
[1673622381191,225.42,16.775,16.759,396.6]
[1673622381401,20.0,16.774,16.759,396.6]
[1673622381591,180.7,16.772,16.759,396.6]
[1673622381805,180.7,16.77,16.751,396.6]
[1673622382014,124.86,16.769,16.751,396.6]
[1673622382241,60.13,16.767,16.751,396.6]
[1673622382447,61.74,16.766,16.751,396.6]
[1673622383188,302.57,16.766,16.751,396.6]
[1673622383387,20.0,16.765,16.751,396.6]
[1673622383601,225.45,16.764,16.751,396.6]
[1673622383796,20.0,16.763,16.751,396.6]
[1673622384130,180.7,16.76,16.74,24.36]
[1673622384345,20.0,16.758,16.74,24.36]
[1673622384553,44.76,16.757,16.74,24.36]
[1673622384961,225.46,16.757,16.74,24.36]
[1673622385374,20.0,16.756,16.74,24.36]
[1673622385584,44.77,16.755,16.74,24.36]
[1673622385816,44.77,16.755,16.734,20.0]
[1673622386027,44.77,16.755,16.733,108.0666]
[1673622386211,60.13,16.753,16.733,108.0666]
[1673622386422,104.91,16.752,16.733,108.0666]
[1673622386648,44.78,16.753,16.73,24.52]
[1673622386870,24.34,16.75,16.73,24.52]
[1673622387056,44.79,16.749,16.73,24.52]
[1673622387480,44.78,16.753,16.73,121.78]
[1673622388323,44.78,16.753,16.731,137.1592]
[1673622389163,225.48,16.753,16.731,137.1592]
[1673622389388,20.0,16.752,16.731,137.1592]
[1673622389589,44.78,16.751,16.731,137.1592]
[1673622389800,44.34,16.75,16.724,20.0]
[1673622390013,44.79,16.749,16.725,117.1592]
[1673622390329,20.0,16.748,16.725,117.1592]
[1673622390543,44.79,16.747,16.73,24.34]
[1673622390735,17.0,16.746,16.73,24.34]
[1673622390947,17.0,16.745,16.73,24.34]
[1673622391163,44.79,16.747,16.73,24.34]
[1673622392316,20.0,16.748,16.73,24.34]
[1673622393072,44.79,16.747,16.73,24.34]
[1673622393395,17.0,16.746,16.73,24.34]
[1673622393583,44.8,16.745,16.73,24.34]
[1673622394013,17.0,16.744,16.725,117.1592]
[1673622394221,17.0,16.744,16.726,40.0]
[1673622394441,17.0,16.743,16.73,24.34]
[1673622394634,20.0,16.748,16.73,24.34]
[1673622394635,64.79,16.748,16.73,24.34]
[1673622394968,20.0,16.748,16.73,24.34]
[1673622395182,20.0,16.746,16.73,24.34]
[1673622395363,44.8,16.745,16.726,20.0]
[1673622396328,44.8,16.745,16.726,40.0]
[1673622397069,44.79,16.746,16.727,20.0]
[1673622397262,44.79,16.747,16.73,24.34]
[1673622397480,157.5218,16.75,16.731,20.0]
[1673622397688,112.7418,16.75,16.731,20.0]
[1673622398219,112.7418,16.75,16.731,40.0]
[1673622399585,112.7418,16.75,16.731,20.0]
[1673622399803,317.6118,16.75,16.731,20.0]
[1673622400109,17.0,16.749,16.731,40.0]
[1673622400321,112.7418,16.75,16.731,159.7338]
[1673622400727,112.7418,16.75,16.731,139.7338]
[1673622401586,112.7418,16.75,16.732,20.0]
[1673622401797,112.7418,16.75,16.733,20.0]
[1673622403658,17.0,16.749,16.733,20.0]
[1673622403879,61.79,16.749,16.733,20.0]
[1673622404109,17.0,16.749,16.733,20.0]
[1673622404315,61.79,16.749,16.733,20.0]
[1673622404841,17.0,16.749,16.733,20.0]
[1673622405252,17.0,16.749,16.734,29.8800799]
[1673622405460,20.0,16.748,16.734,29.8800799]
[1673622405662,44.79,16.747,16.73,24.36]
[1673622406104,44.79,16.748,16.73,24.36]
[1673622406739,44.79,16.749,16.73,24.36]
[1673622407136,20.0,16.748,16.73,24.36]
[1673622407347,44.79,16.747,16.73,24.36]
[1673622410235,20.0,16.746,16.73,24.36]
[1673622410541,60.13,16.744,16.725,117.1592]
[1673622410733,177.3726,16.743,16.726,20.0]
[1673622410937,60.13,16.742,16.726,20.0]
[1673622411158,44.81,16.741,16.726,20.0]
[1673622411664,44.81,16.742,16.726,20.0]
[1673622412420,44.81,16.742,16.73,24.34]
[1673622413993,44.81,16.742,16.726,20.0]
[1673622414410,44.81,16.742,16.726,15.0]
[1673622415035,20.0,16.741,16.726,15.0]
[1673622415248,44.81,16.74,16.726,15.0]
[1673622415446,44.81,16.74,16.722,228.6538]
[1673622415658,225.51,16.74,16.72,37.495417]
[1673622415876,20.0,16.739,16.72,37.495417]
[1673622416097,64.82,16.738,16.72,37.495417]
[1673622416301,64.82,16.738,16.72,12.975417]
[1673622416717,60.13,16.737,16.72,12.975417]
[1673622416930,20.0,16.735,16.72,12.975417]
[1673622417255,44.83,16.734,16.72,12.975417]
[1673622417474,155.5441,16.736,16.72,12.975417]
[1673622417651,336.2441,16.736,16.72,12.975417]
[1673622417867,20.0,16.735,16.72,12.975417]
[1673622418074,44.83,16.734,16.72,12.975417]
[1673622418287,104.96,16.734,16.72,12.975417]
[1673622418936,44.83,16.734,16.72,12.975417]
[1673622419243,110.7241,16.736,16.72,12.975417]
[1673622419244,44.82,16.735,16.72,12.975417]
[1673622419438,225.52,16.735,16.72,12.975417]
[1673622419652,20.0,16.734,16.72,12.975417]
[1673622419869,44.83,16.733,16.72,7.975417]
[1673622421454,225.53,16.733,16.72,7.975417]
[1673622421657,44.83,16.733,16.72,7.975417]
[1673622422403,44.82,16.735,16.721,29.8800799]
[1673622422595,44.82,16.738,16.721,29.8800799]
[1673622422809,64.81,16.739,16.722,20.0]
[1673622423140,64.81,16.739,16.723,29.8800799]
[1673622423351,44.81,16.739,16.723,29.8800799]
[1673622423674,44.8,16.743,16.724,20.0]
[1673622423859,20.0,16.742,16.723,29.8800799]
[1673622424065,64.81,16.741,16.72,32.495417]
[1673622424803,20.0,16.74,16.72,32.495417]
[1673622425023,81.81,16.739,16.72,32.495417]
[1673622425223,81.81,16.739,16.72,27.495417]
[1673622425434,240.83,16.738,16.72,2.975417]
[1673622425648,180.7,16.736,16.72,2.975417]
[1673622425864,20.0,16.734,16.72,2.975417]
[1673622426189,44.83,16.733,16.72,2.975417]
[1673622426393,20.0,16.732,16.72,2.975417]
[1673622426602,44.83,16.731,16.72,2.975417]
[1673622427010,44.83,16.733,16.72,2.975417]
[1673622428912,44.83,16.734,16.72,2.975417]
[1673622429237,118.0065,16.735,16.72,2.975417]
[1673622429841,20.0,16.734,16.72,2.975417]
[1673622430077,44.83,16.733,16.72,2.975417]
[1673622430583,17.0,16.732,16.72,2.975417]
[1673622430794,20.0,16.73,16.72,2.975417]
[1673622431429,44.84,16.731,16.72,2.975417]
[1673622431641,20.0,16.732,16.72,2.975417]
[1673622431855,44.84,16.731,16.72,2.975417]
[1673622432804,220.7,16.73,16.72,2.975417]
[1673622433144,44.84,16.729,16.72,2.975417]
[1673622433334,44.83,16.732,16.72,2.975417]
[1673622433546,20.0,16.734,16.72,2.975417]
[1673622433547,44.83,16.733,16.72,2.975417]
[1673622434390,44.83,16.734,16.72,2.975417]
[1673622434812,44.83,16.734,16.72,27.185417]
[1673622435673,20.0,16.733,16.72,27.185417]
[1673622435862,44.83,16.732,16.72,2.975417]
[1673622436191,225.53,16.732,16.72,2.975417]
[1673622436798,20.0,16.731,16.72,2.975417]
[1673622437008,64.84,16.73,16.72,2.975417]
[1673622437238,60.13,16.729,16.72,2.975417]
[1673622437433,60.13,16.727,16.72,2.975417]
[1673622437644,60.13,16.723,16.706,117.1768]
[1673622437861,44.86,16.722,16.706,117.1768]
[1673622439230,24.34,16.72,16.7,24.52]
[1673622439445,64.87,16.719,16.697,110.5205]
[1673622439762,20.0,16.718,16.698,20.0]
[1673622439950,44.87,16.717,16.7,24.25]
[1673622440166,60.13,16.723,16.701,20.0]
[1673622440167,44.86,16.722,16.701,20.0]
[1673622441022,44.86,16.722,16.702,20.0]
[1673622442395,17.0,16.721,16.702,20.0]
[1673622442702,44.86,16.72,16.702,20.0]
[1673622442909,17.0,16.719,16.702,20.0]
[1673622443118,17.0,16.719,16.703,29.8800799]
[1673622443314,17.0,16.719,16.704,20.0]
[1673622443521,44.86,16.722,16.704,20.0]
[1673622443743,44.85,16.725,16.705,20.0]
[1673622443953,44.85,16.725,16.71,24.21]
[1673622445104,116.469,16.726,16.71,24.21]
[1673622445326,44.84,16.729,16.71,24.21]
[1673622445537,44.84,16.729,16.711,20.0]
[1673622445749,44.84,16.73,16.712,20.0]
[1673622445960,116.9336,16.731,16.712,129.5162]
[1673622446591,116.9336,16.731,16.713,118.0971]
[1673622446809,61.84,16.73,16.714,20.0]
[1673622447125,44.84,16.73,16.714,20.0]
[1673622447321,116.9336,16.731,16.714,20.0]
[1673622447536,116.9336,16.731,16.715,20.0]
[1673622447854,116.9336,16.731,16.716,20.0]
[1673622448264,116.9336,16.731,16.714,20.0]
[1673622448468,44.84,16.73,16.714,20.0]
[1673622449003,17.0,16.729,16.714,20.0]
[1673622449654,44.84,16.728,16.714,20.0]
[1673622450166,297.6336,16.731,16.714,20.0]
[1673622450356,129.31,16.73,16.712,109.5162]
[1673622450575,20.0,16.728,16.712,109.5162]
[1673622450783,44.85,16.727,16.712,109.5162]
[1673622451634,20.0,16.726,16.71,24.49]
[1673622451840,44.85,16.725,16.707,119.86]
[1673622452474,20.0,16.724,16.707,119.86]
[1673622452699,44.86,16.723,16.707,119.86]
[1673622453007,20.0,16.722,16.707,119.86]
[1673622453196,44.86,16.721,16.708,20.0]
[1673622453623,20.0,16.72,16.707,20.0]
[1673622453835,44.87,16.719,16.707,20.0]
[1673622454279,44.87,16.719,16.705,20.0]
[1673622454467,20.0,16.72,16.701,108.9472]
[1673622454679,20.0,16.719,16.701,108.9472]
[1673622455010,20.0,16.717,16.698,396.6]
[1673622455326,44.88,16.716,16.698,396.6]
[1673622455731,17.0,16.715,16.698,396.6]
[1673622456690,20.0,16.713,16.698,396.6]
[1673622457005,61.89,16.712,16.698,396.6]
[1673622457218,17.0,16.712,16.696,108.9472]
[1673622457426,17.0,16.712,16.697,20.0]
[1673622457833,17.0,16.712,16.696,108.9472]
[1673622458044,17.0,16.712,16.697,20.0]
[1673622458683,17.0,16.712,16.698,20.0]
[1673622462056,20.0,16.72,16.7,121.58]
[1673622462254,20.0,16.722,16.71,121.96]
[1673622462668,180.7,16.73,16.71,121.96]
[1673622462876,180.7,16.73,16.711,20.0]
[1673622463101,359.44180472,16.744,16.711,20.0]
[1673622463102,359.44180472,16.744,16.72,121.7]
[1673622463299,110.8075,16.746,16.721,20.0]
[1673622463507,291.5075,16.746,16.721,20.0]
[1673622463721,52.76035601,16.745,16.72,121.67]
[1673622463928,6.95653,16.744,16.72,121.67]
[1673622464153,6.95653,16.744,16.722,29.8800799]
[1673622464372,6.95653,16.744,16.72,121.67]
[1673622464555,57.06316534,16.743,16.721,20.0]
[1673622464889,6.95653,16.742,16.721,49.8800799]
[1673622465101,6.95653,16.742,16.721,20.0]
[1673622465295,6.95653,16.742,16.73,24.21]
[1673622465511,24.54,16.75,16.73,24.21]
[1673622465512,24.54,16.75,16.731,20.0]
[1673622465820,24.54,16.75,16.73,24.21]
[1673622465821,24.17,16.75,16.73,24.21]
[1673622466028,180.7,16.748,16.73,24.34]
[1673622466246,180.7,16.746,16.73,24.34]
[1673622466467,44.79,16.748,16.73,24.21]
[1673622466677,119.6329,16.755,16.73,24.21]
[1673622466678,44.77,16.754,16.73,24.21]
[1673622466884,6.95653,16.753,16.73,121.54]
[1673622467085,44.78,16.752,16.73,121.54]
[1673622467292,76.49315868,16.753,16.73,24.49]
[1673622467504,44.78,16.752,16.731,20.0]
[1673622467933,101.27315868,16.752,16.731,20.0]
[1673622468143,101.27315868,16.752,16.73,24.49]
[1673622468462,24.17,16.75,16.73,24.49]
[1673622468680,84.79,16.749,16.73,24.49]
[1673622469072,84.79,16.749,16.725,29.8800799]
[1673622469290,84.79,16.749,16.73,24.25]
[1673622469618,84.79,16.749,16.731,29.8800799]
[1673622469822,84.79,16.749,16.722,227.5951]
[1673622470031,255.99385868,16.749,16.722,227.5951]
[1673622470352,255.99385868,16.749,16.725,29.8800799]
[1673622470566,17.0,16.748,16.728,29.8800799]
[1673622470786,225.49,16.747,16.729,20.0]
[1673622471313,20.0,16.746,16.724,29.8800799]
[1673622471625,44.8,16.745,16.725,20.0]
[1673622471826,139.8395,16.746,16.725,20.0]
[1673622472143,44.8,16.745,16.725,20.0]
[1673622472364,44.8,16.745,16.725,49.8800799]
[1673622472538,44.8,16.745,16.73,24.34]
[1673622472964,139.8395,16.746,16.73,24.34]
[1673622473176,119.8395,16.746,16.73,24.34]
[1673622473407,119.8395,16.746,16.731,29.8800799]
[1673622473611,114.7107,16.749,16.731,29.8800799]
[1673622473811,114.7107,16.749,16.732,20.0]
[1673622474029,114.7107,16.749,16.73,24.36]
[1673622474253,20.0,16.747,16.73,24.36]
[1673622474552,44.8,16.746,16.73,24.36]
[1673622474771,44.8,16.746,16.723,20.0]
[1673622474980,112.4997,16.745,16.723,40.0]
[1673622475187,44.8,16.744,16.724,20.0]
[1673622476220,44.8,16.744,16.722,227.5951]
[1673622476221,20.0,16.742,16.723,20.0]
[1673622476432,44.81,16.741,16.723,20.0]
[1673622476959,112.4997,16.745,16.73,24.21]
[1673622477599,44.8,16.744,16.73,24.21]
[1673622479699,112.4997,16.745,16.73,24.21]
[1673622479904,112.4997,16.745,16.73,48.57]
[1673622480121,114.7107,16.749,16.731,20.0]
[1673622480865,20.0,16.748,16.73,24.36]
[1673622481067,44.79,16.747,16.73,24.36]
[1673622482640,44.79,16.747,16.724,20.0]
[1673622482976,180.7,16.746,16.722,227.5951]
[1673622483159,20.0,16.744,16.722,227.5951]
[1673622483493,154.6204,16.743,16.722,227.5951]
[1673622483810,154.6204,16.743,16.723,20.0]
[1673622484335,154.6204,16.743,16.723,40.0]
[1673622484549,154.6204,16.743,16.723,20.0]
[1673622484857,154.6204,16.743,16.73,24.34]
[1673622485078,64.79,16.748,16.73,24.34]
[1673622485266,20.0,16.748,16.73,24.34]
[1673622485711,44.79,16.747,16.73,24.34]
[1673622486241,44.79,16.748,16.73,24.36]
[1673622486863,225.49,16.748,16.73,24.36]
[1673622487048,20.0,16.747,16.73,24.36]
[1673622487262,44.8,16.746,16.73,24.36]
[1673622488331,44.79,16.748,16.73,24.36]
[1673622488851,159.5007,16.749,16.73,24.36]
[1673622489168,114.7107,16.749,16.731,20.0]
[1673622489581,114.7107,16.749,16.731,250.5339]
[1673622490007,159.5007,16.749,16.731,250.5339]
[1673622490628,119.8478,16.751,16.731,250.5339]
[1673622490845,44.78,16.753,16.732,20.0]
[1673622491054,64.78,16.754,16.733,20.0]
[1673622491266,44.78,16.754,16.733,20.0]
[1673622492445,225.48,16.754,16.731,230.5339]
[1673622492643,24.18,16.75,16.731,111.0373]
[1673622492845,245.49,16.749,16.714,20.0]
[1673622493057,180.7,16.747,16.72,121.7]
[1673622493254,80.13,16.748,16.723,116.459]
[1673622493255,180.7,16.745,16.723,116.459]
[1673622493591,225.5,16.744,16.723,116.459]
[1673622493992,20.0,16.742,16.723,116.459]
[1673622494201,44.81,16.741,16.723,116.459]
[1673622494962,44.34,16.74,16.72,24.49]
[1673622495276,44.82,16.739,16.721,116.459]
[1673622495475,44.82,16.739,16.72,24.49]
[1673622495476,60.13,16.738,16.72,24.49]
[1673622495686,44.82,16.737,16.72,24.49]
[1673622495898,104.95,16.738,16.72,24.49]
[1673622497788,60.13,16.738,16.72,24.49]
[1673622497990,44.82,16.737,16.72,24.49]
[1673622498206,104.95,16.738,16.721,20.0]
[1673622498523,44.82,16.738,16.721,20.0]
[1673622498748,44.81,16.742,16.721,20.0]
[1673622498937,44.81,16.742,16.722,20.0]
[1673622499150,44.81,16.742,16.723,20.0]
[1673622499360,44.8,16.746,16.723,20.0]
[1673622499566,162.7471,16.746,16.723,20.0]
[1673622500095,162.7471,16.746,16.73,24.34]
[1673622500426,117.9471,16.746,16.731,20.0]
[1673622500737,44.8,16.745,16.731,20.0]
[1673622501264,117.9471,16.746,16.731,20.0]
[1673622501896,44.79,16.748,16.731,20.0]
[1673622502414,44.78,16.751,16.731,20.0]
[1673622502628,44.78,16.751,16.732,108.041]
[1673622502942,44.78,16.751,16.733,40.0]
[1673622503259,104.91,16.752,16.733,20.0]
[1673622504499,17.0,16.751,16.733,20.0]
[1673622504717,44.79,16.75,16.733,20.0]
[1673622505048,17.0,16.749,16.733,20.0]
[1673622505236,44.79,16.748,16.733,20.0]
[1673622505868,104.92,16.748,16.72,121.82]
[1673622506081,44.79,16.748,16.724,136.23]
[1673622506289,44.79,16.748,16.724,116.23]
[1673622506503,17.0,16.747,16.724,116.23]
[1673622506824,44.8,16.746,16.724,116.23]
[1673622507038,137.2481,16.745,16.724,116.23]
[1673622507232,61.8,16.744,16.724,116.23]
[1673622507446,44.8,16.744,16.724,116.23]
[1673622508728,20.0,16.743,16.724,116.23]
[1673622509031,44.81,16.742,16.724,116.23]
[1673622509441,60.13,16.741,16.724,116.23]
[1673622509656,20.0,16.743,16.724,116.23]
[1673622509657,60.13,16.739,16.724,116.23]
[1673622509983,20.0,16.743,16.725,20.0]
[1673622510180,117.2481,16.745,16.725,20.0]
[1673622510592,44.8,16.744,16.725,20.0]
[1673622510809,117.2481,16.745,16.726,20.0]
[1673622511129,117.2481,16.745,16.727,20.0]
[1673622512290,117.2481,16.745,16.73,24.34]
[1673622512504,117.2481,16.745,16.731,20.0]
[1673622512907,163.1623,16.749,16.731,20.0]
[1673622513129,163.1623,16.749,16.731,137.5524]
[1673622513350,118.3723,16.749,16.731,137.5524]
[1673622513876,118.3723,16.749,16.731,249.0845]
[1673622514277,44.78,16.752,16.731,249.0845]
[1673622514483,44.78,16.752,16.731,278.9645799]
[1673622515044,44.78,16.752,16.731,249.0845]
[1673622515863,20.0,16.75,16.731,249.0845]
[1673622516076,44.78,16.752,16.731,249.0845]
[1673622517018,20.0,16.751,16.731,249.0845]
[1673622517547,61.79,16.75,16.731,249.0845]
[1673622517964,17.0,16.75,16.731,249.0845]
[1673622518180,44.78,16.751,16.731,249.0845]
[1673622518386,60.13,16.753,16.731,249.0845]
[1673622518921,104.91,16.753,16.732,20.0]
[1673622519112,60.13,16.753,16.732,20.0]
[1673622519322,60.13,16.753,16.733,20.0]
[1673622519538,104.91,16.753,16.733,20.0]
[1673622519952,60.13,16.753,16.74,24.34]
[1673622520173,64.76,16.759,16.741,20.0]
[1673622520174,76.9165,16.758,16.741,20.0]
[1673622520381,193.5025,16.758,16.741,20.0]
[1673622520591,44.77,16.757,16.741,20.0]
[1673622521011,104.9,16.757,16.741,20.0]
[1673622521228,20.0,16.756,16.741,20.0]
[1673622521438,44.77,16.755,16.741,20.0]
[1673622521648,44.77,16.755,16.735,20.0]
[1673622521861,37.0,16.754,16.735,20.0]
[1673622522058,104.91,16.753,16.735,20.0]
[1673622522498,17.0,16.752,16.735,20.0]
[1673622522817,44.78,16.751,16.735,20.0]
[1673622523349,44.78,16.752,16.735,20.0]
[1673622524793,20.0,16.756,16.735,20.0]
[1673622524794,60.13,16.753,16.735,20.0]
[1673622525005,44.78,16.752,16.735,20.0]
[1673622525742,17.0,16.751,16.735,20.0]
[1673622526272,44.78,16.751,16.735,20.0]
[1673622526695,44.78,16.752,16.735,20.0]
[1673622528075,17.0,16.751,16.735,20.0]
[1673622528382,44.79,16.75,16.735,20.0]
[1673622528700,60.13,16.753,16.735,20.0]
[1673622528916,44.78,16.752,16.735,20.0]
[1673622529111,60.13,16.753,16.735,20.0]
[1673622529642,60.13,16.754,16.735,40.0]
[1673622529850,104.91,16.753,16.735,40.0]
[1673622530165,60.13,16.753,16.735,20.0]
[1673622530372,61.78,16.752,16.735,20.0]
[1673622531412,44.78,16.752,16.735,20.0]
[1673622531623,60.13,16.753,16.736,20.0]
[1673622531835,60.13,16.753,16.737,20.0]
[1673622532049,44.78,16.752,16.737,20.0]
[1673622532261,60.13,16.753,16.737,20.0]
[1673622532679,17.0,16.752,16.737,20.0]
[1673622533102,61.78,16.752,16.737,20.0]
[1673622533736,17.0,16.752,16.737,20.0]
[1673622533953,44.78,16.751,16.737,20.0]
[1673622534162,60.13,16.753,16.737,20.0]
[1673622534374,61.78,16.752,16.735,20.0]
[1673622535321,242.48,16.752,16.735,20.0]
[1673622535545,61.78,16.752,16.735,20.0]
[1673622539301,242.48,16.752,16.735,20.0]
[1673622539511,20.0,16.751,16.735,20.0]
[1673622539721,44.79,16.75,16.735,20.0]
[1673622539944,17.0,16.749,16.735,20.0]
[1673622540142,44.79,16.748,16.735,20.0]
[1673622540354,17.0,16.747,16.735,20.0]
[1673622540898,17.0,16.747,16.732,20.0]
[1673622542386,17.0,16.747,16.733,20.0]